Workbook

Sheet Original
B1: Original | U1: LEGEND:
L2: Color Space: | M2: BT2020 | V2: Cell to Enter data or Select data
V3: DO NOT TOUCH - System Calculated Values
B4: =DEC2HEX(_xlfn.BITLSHIFT(BIN2DEC(B7),5)+_xlfn.BITLSHIFT(BIN2DEC(C7),2)+_xlfn.BITLSHIFT(BIN2DEC(D7),1)+BIN2DEC(E7)) -> 49 | F4: =DEC2HEX(_xlfn.BITLSHIFT(BIN2DEC(F7),3)+_xlfn.BITLSHIFT(BIN2DEC(G7),2)+BIN2DEC(H7),2) -> 03 | I4: =DEC2HEX(_xlfn.BITLSHIFT(BIN2DEC(I7),3)+_xlfn.BITLSHIFT(BIN2DEC(J7),1)+BIN2DEC(K7),2) -> F8 | L4: =BIN2HEX(_xlfn.CONCAT(L7,M7),2) -> 56 | N4: =BIN2HEX(_xlfn.CONCAT(N7,O7),2) -> 98 | P4: =BIN2HEX(_xlfn.CONCAT(P7,Q7),2) -> A9 | R4: =BIN2HEX(_xlfn.CONCAT(R7,S7),2) -> 53 | V4: DO NOT TOUCH - Pre-defined Values or Labels
B5: Version | C5: DM Version | D5: Backlight Ctrl | E5: YUV 12-bit | F5: Min Lum Nits | G5: Global Dimming | H5: Backlight Min Lum | I5: Max Lum Nits | J5: Reserved | K5: DV Mode | L5: Gx[6:0] | M5: 12b 444[1] | N5: Gy[6:0] | O5: 10b 444[0] | P5: Rx[4:0] | Q5: Bx[2:0] | R5: Ry[4:0] | S5: By[2:0]
B6: 2 | C6: 3.x | D6: Not Supported | E6: Supported | F6: 0 | G6: Not Supported | H6: Disabled | I6: 10000 | J6: 0 | K6: LLDV | L6: =INDEX($X$24:$X$29,MATCH(M2,$U$24:$U$29,0)) -> 0.17 | M6: Not Supported | N6: =INDEX($Y$24:$Y$29,MATCH($M$2,$U$24:$U$29,0)) -> 0.797 | O6: Not Supported | P6: =INDEX($V$24:$V$29,MATCH($M$2,$U$24:$U$29,0)) -> 0.708 | Q6: =INDEX($Z$24:$Z$29,MATCH($M$2,$U$24:$U$29,0)) -> 0.131 | R6: =INDEX($W$24:$W$29,MATCH($M$2,$U$24:$U$29,0)) -> 0.292 | S6: =INDEX($AA$24:$AA$29,MATCH($M$2,$U$24:$U$29,0)) -> 0.046
B7: 010 | C7: 010 | D7: =IF(EXACT(D6,"Supported"),1,0) -> 0 | E7: =IF(EXACT(E6,"Supported"),1,0) -> 1 | F7: =DEC2BIN(VLOOKUP(F6,$R$11:$S$42,2),5) -> 00000 | G7: =IF(EXACT(G6,"Supported"),1,0) -> 0 | H7: =IF(EXACT(D6,"Not Supported"),"11",INDEX($V$11:$V$14,MATCH(H6,$U$11:$U$14,0))) -> 11 | I7: =DEC2BIN(VLOOKUP(I6,$P$11:$Q$42,2),5) -> 11111 | J7: 0 | K7: =VLOOKUP(K6,$U$18:$V$21,2) -> 00 | L7: =DEC2BIN(L6/( 0.49609375/127),7) -> 0101011 | M7: =IF(AND(EXACT(M6,"Supported"),EXACT(O6,"Not Supported")),1,0) -> 0 | N7: =DEC2BIN((N6-0.5)/((0.99609375-0.5)/127),7) -> 1001100 | O7: =IF(AND(EXACT(O6,"Supported"),EXACT(M6,"Not Supported")),1,0) -> 0 | P7: =DEC2BIN((P6-0.625)/((0.74609375-0.625)/31),5) -> 10101 | Q7: =DEC2BIN((Q6-0.125)/((0.15234375-0.125)/7),3) -> 001 | R7: =DEC2BIN((R6-0.25)/((0.37109375-0.25)/31),5) -> 01010 | S7: =DEC2BIN((S6-0.03125)/((0.05859375-0.03125)/7),3) -> 011
B9: Dolby VSVDB (V2) Payload | F9: =_xlfn.CONCAT(B4:S4) -> 4903F85698A953
O10: MaxL nits | P10: MaxL nits (int) | Q10: MaxL (dec) | R10: MinL nits | S10: MinL (dec) | U10: Backlight | V10: Value
O11: =PQ2nits((2055+65*Q11)/(2055+31*65)) -> 96.89294744 | P11: =INT(O11) -> 96 | Q11: 0 | R11: =ROUND(PQ2nits((20*$Q11)/(2055+31*65)),3) -> 0 | S11: 0 | U11: 25 nits | V11: 00
O12: =PQ2nits((2055+65*Q12)/(2055+31*65)) -> 113.5484927 | P12: 113 | Q12: 1 | R12: =ROUND(PQ2nits((20*$Q12)/(2055+31*65)),3) -> 0.001 | S12: 1 | U12: 50 nits | V12: 01
O13: =PQ2nits((2055+65*Q13)/(2055+31*65)) -> 132.855378 | P13: 132 | Q13: 2 | R13: =ROUND(PQ2nits((20*$Q13)/(2055+31*65)),3) -> 0.002 | S13: 2 | U13: 75 nits | V13: 10
O14: =PQ2nits((2055+65*Q14)/(2055+31*65)) -> 155.2199446 | P14: 155 | Q14: 3 | R14: =ROUND(PQ2nits((20*$Q14)/(2055+31*65)),3) -> 0.005 | S14: 3 | U14: 100 nits | V14: 11
O15: =PQ2nits((2055+65*Q15)/(2055+31*65)) -> 181.1107981 | P15: 181 | Q15: 4 | R15: =ROUND(PQ2nits((20*$Q15)/(2055+31*65)),3) -> 0.008 | S15: 4 | U15: Disabled | V15: 11
O16: =PQ2nits((2055+65*Q16)/(2055+31*65)) -> 211.0686167 | P16: =INT(O16) -> 211 | Q16: 5 | R16: =ROUND(PQ2nits((20*$Q16)/(2055+31*65)),3) -> 0.013 | S16: 5
O17: =PQ2nits((2055+65*Q17)/(2055+31*65)) -> 245.7175762 | P17: 245 | Q17: 6 | R17: =ROUND(PQ2nits((20*$Q17)/(2055+31*65)),3) -> 0.019 | S17: 6 | U17: Mode | V17: Value
O18: =PQ2nits((2055+65*Q18)/(2055+31*65)) -> 285.7786713 | P18: 285 | Q18: 7 | R18: =ROUND(PQ2nits((20*$Q18)/(2055+31*65)),3) -> 0.026 | S18: 7 | U18: LLDV | V18: 00
O19: =PQ2nits((2055+65*Q19)/(2055+31*65)) -> 332.0852676 | P19: 332 | Q19: 8 | R19: =ROUND(PQ2nits((20*$Q19)/(2055+31*65)),3) -> 0.035 | S19: 8 | U19: LLDV + LLDV-HDMI | V19: 01
O20: =PQ2nits((2055+65*Q20)/(2055+31*65)) -> 385.6012776 | P20: 385 | Q20: 9 | R20: =ROUND(PQ2nits((20*$Q20)/(2055+31*65)),3) -> 0.046 | S20: 9 | U20: Std + LLDV | V20: 10
O21: =PQ2nits((2055+65*Q21)/(2055+31*65)) -> 447.4424315 | P21: 447 | Q21: 10 | R21: =ROUND(PQ2nits((20*$Q21)/(2055+31*65)),3) -> 0.058 | S21: 10 | U21: Std + LLDV + LLDV-HDMI | V21: 11
O22: =PQ2nits((2055+65*Q22)/(2055+31*65)) -> 518.9012004 | P22: 518 | Q22: 11 | R22: =ROUND(PQ2nits((20*$Q22)/(2055+31*65)),3) -> 0.072 | S22: 11
O23: =PQ2nits((2055+65*Q23)/(2055+31*65)) -> 601.4760381 | P23: 601 | Q23: 12 | R23: =ROUND(PQ2nits((20*$Q23)/(2055+31*65)),3) -> 0.088 | S23: 12 | U23: Color Space | V23: Rx | W23: Ry | X23: Gx | Y23: Gy | Z23: Bx | AA23: By | AB23: Source
O24: =PQ2nits((2055+65*Q24)/(2055+31*65)) -> 696.9057369 | P24: 696 | Q24: 13 | R24: =ROUND(PQ2nits((20*$Q24)/(2055+31*65)),3) -> 0.106 | S24: 13 | U24: BT709 | V24: 0.64 | W24: 0.33 | X24: 0.3 | Y24: 0.6 | Z24: 0.15 | AA24: 0.06 | AB24: https://en.wikipedia.org/wiki/Rec._709
O25: =PQ2nits((2055+65*Q25)/(2055+31*65)) -> 807.2098477 | P25: 807 | Q25: 14 | R25: =ROUND(PQ2nits((20*$Q25)/(2055+31*65)),3) -> 0.127 | S25: 14 | U25: BT2020 | V25: 0.708 | W25: 0.292 | X25: 0.17 | Y25: 0.797 | Z25: 0.131 | AA25: 0.046 | AB25: https://en.wikipedia.org/wiki/Rec._2020
O26: =PQ2nits((2055+65*Q26)/(2055+31*65)) -> 934.7363058 | P26: 934 | Q26: 15 | R26: =ROUND(PQ2nits((20*$Q26)/(2055+31*65)),3) -> 0.15 | S26: 15 | U26: DCI-P3 | V26: 0.68 | W26: 0.32 | X26: 0.265 | Y26: 0.69 | Z26: 0.15 | AA26: 0.06 | AB26: https://en.wikipedia.org/wiki/DCI-P3
O27: =PQ2nits((2055+65*Q27)/(2055+31*65)) -> 1082.21763 | P27: 1082 | Q27: 16 | R27: =ROUND(PQ2nits((20*$Q27)/(2055+31*65)),3) -> 0.176 | S27: 16 | U27: LS12000 Native | V27: 0.667 | W27: 0.331 | X27: 0.314 | Y27: 0.672 | Z27: 0.148 | AA27: 0.042
O28: =PQ2nits((2055+65*Q28)/(2055+31*65)) -> 1252.837342 | P28: 1252 | Q28: 17 | R28: =ROUND(PQ2nits((20*$Q28)/(2055+31*65)),3) -> 0.204 | S28: 17 | U28: m0j0 | V28: 0.667 | W28: 0.331 | X28: 0.265 | Y28: 0.69 | Z28: 0.148 | AA28: 0.06
O29: =PQ2nits((2055+65*Q29)/(2055+31*65)) -> 1450.308591 | P29: 1450 | Q29: 18 | R29: =ROUND(PQ2nits((20*$Q29)/(2055+31*65)),3) -> 0.236 | S29: 18 | U29: CUSTOM | V29: 0.7499 | W29: 0.2461 | X29: 0.0039 | Y29: 0.9961 | Z29: 0.1289 | AA29: 0.0351
O30: =PQ2nits((2055+65*Q30)/(2055+31*65)) -> 1678.967383 | P30: 1678 | Q30: 19 | R30: =ROUND(PQ2nits((20*$Q30)/(2055+31*65)),3) -> 0.271 | S30: 19
O31: =PQ2nits((2055+65*Q31)/(2055+31*65)) -> 1943.883308 | P31: 1943 | Q31: 20 | R31: =ROUND(PQ2nits((20*$Q31)/(2055+31*65)),3) -> 0.31 | S31: 20 | U31: Min Value | V31: 0.6289 | W31: 0.2461 | X31: 0.0039 | Y31: 0.4961 | Z31: 0.1289 | AA31: 0.0351
O32: =PQ2nits((2055+65*Q32)/(2055+31*65)) -> 2250.991296 | P32: 2250 | Q32: 21 | R32: =ROUND(PQ2nits((20*$Q32)/(2055+31*65)),3) -> 0.353 | S32: 21 | U32: Max Value | V32: 0.7499 | W32: 0.3711 | X32: 0.4999 | Y32: 0.9961 | Z32: 0.1524 | AA32: 0.0624
O33: =PQ2nits((2055+65*Q33)/(2055+31*65)) -> 2607.248669 | P33: 2607 | Q33: 22 | R33: =ROUND(PQ2nits((20*$Q33)/(2055+31*65)),3) -> 0.399 | S33: 22
O34: =PQ2nits((2055+65*Q34)/(2055+31*65)) -> 3020.822711 | P34: 3020 | Q34: 23 | R34: =ROUND(PQ2nits((20*$Q34)/(2055+31*65)),3) -> 0.45 | S34: 23
O35: =PQ2nits((2055+65*Q35)/(2055+31*65)) -> 3501.315105 | P35: 3501 | Q35: 24 | R35: =ROUND(PQ2nits((20*$Q35)/(2055+31*65)),3) -> 0.506 | S35: 24
O36: =PQ2nits((2055+65*Q36)/(2055+31*65)) -> 4060.031048 | P36: 4060 | Q36: 25 | R36: =ROUND(PQ2nits((20*$Q36)/(2055+31*65)),3) -> 0.566 | S36: 25
O37: =PQ2nits((2055+65*Q37)/(2055+31*65)) -> 4710.302591 | P37: 4710 | Q37: 26 | R37: =ROUND(PQ2nits((20*$Q37)/(2055+31*65)),3) -> 0.631 | S37: 26
O38: =PQ2nits((2055+65*Q38)/(2055+31*65)) -> 5467.877966 | P38: 5467 | Q38: 27 | R38: =ROUND(PQ2nits((20*$Q38)/(2055+31*65)),3) -> 0.702 | S38: 27
O39: =PQ2nits((2055+65*Q39)/(2055+31*65)) -> 6351.391429 | P39: 6351 | Q39: 28 | R39: =ROUND(PQ2nits((20*$Q39)/(2055+31*65)),3) -> 0.779 | S39: 28
O40: =PQ2nits((2055+65*Q40)/(2055+31*65)) -> 7382.931543 | P40: 7382 | Q40: 29 | R40: =ROUND(PQ2nits((20*$Q40)/(2055+31*65)),3) -> 0.862 | S40: 29
O41: =PQ2nits((2055+65*Q41)/(2055+31*65)) -> 8588.730191 | P41: 8588 | Q41: 30 | R41: =ROUND(PQ2nits((20*$Q41)/(2055+31*65)),3) -> 0.951 | S41: 30
O42: =PQ2nits((2055+65*Q42)/(2055+31*65)) -> 10000 | P42: 10000 | Q42: 31 | R42: =ROUND(PQ2nits((20*$Q42)/(2055+31*65)),3) -> 1.048 | S42: 31
B44: Based on Excels from: https://github.com/xnappo/ez_dv_edid_fw/archive/refs/heads/main.zip

Sheet Player Led (HDR)
B1: Player Led (HDR) | U1: LEGEND:
L2: Color Space: | M2: BT2020 | V2: Cell to Enter data or Select data
V3: DO NOT TOUCH - System Calculated Values
B4: =DEC2HEX(_xlfn.BITLSHIFT(BIN2DEC(B7),5)+_xlfn.BITLSHIFT(BIN2DEC(C7),2)+_xlfn.BITLSHIFT(BIN2DEC(D7),1)+BIN2DEC(E7)) -> 49 | F4: =DEC2HEX(_xlfn.BITLSHIFT(BIN2DEC(F7),3)+_xlfn.BITLSHIFT(BIN2DEC(G7),2)+BIN2DEC(H7),2) -> 03 | I4: =DEC2HEX(_xlfn.BITLSHIFT(BIN2DEC(I7),3)+_xlfn.BITLSHIFT(BIN2DEC(J7),1)+BIN2DEC(K7),2) -> F8 | L4: =BIN2HEX(_xlfn.CONCAT(L7,M7),2) -> 56 | N4: =BIN2HEX(_xlfn.CONCAT(N7,O7),2) -> 98 | P4: =BIN2HEX(_xlfn.CONCAT(P7,Q7),2) -> A9 | R4: =BIN2HEX(_xlfn.CONCAT(R7,S7),2) -> 53 | V4: DO NOT TOUCH - Pre-defined Values or Labels
B5: Version | C5: DM Version | D5: Backlight Ctrl | E5: YUV 12-bit | F5: Min Lum Nits | G5: Global Dimming | H5: Backlight Min Lum | I5: Max Lum Nits | J5: Reserved | K5: DV Mode | L5: Gx[6:0] | M5: 12b 444[1] | N5: Gy[6:0] | O5: 10b 444[0] | P5: Rx[4:0] | Q5: Bx[2:0] | R5: Ry[4:0] | S5: By[2:0]
B6: 2 | C6: 3.x | D6: Not Supported | E6: Supported | F6: 0 | G6: Not Supported | H6: 25 nits | I6: 10000 | J6: 0 | K6: LLDV | L6: =INDEX($X$21:$X$26,MATCH($M$2,$U$21:$U$26,0)) -> 0.17 | M6: Not Supported | N6: =INDEX($Y$21:$Y$26,MATCH($M$2,$U$21:$U$26,0)) -> 0.797 | O6: Not Supported | P6: =INDEX($V$21:$V$26,MATCH($M$2,$U$21:$U$26,0)) -> 0.708 | Q6: =INDEX($Z$21:$Z$26,MATCH($M$2,$U$21:$U$26,0)) -> 0.131 | R6: =INDEX($W$21:$W$26,MATCH($M$2,$U$21:$U$26,0)) -> 0.292 | S6: =INDEX($AA$21:$AA$26,MATCH($M$2,$U$21:$U$26,0)) -> 0.046
B7: 010 | C7: 010 | D7: =IF(EXACT(D6,"Supported"),1,0) -> 0 | E7: =IF(EXACT(E6,"Supported"),1,0) -> 1 | F7: =DEC2BIN(VLOOKUP(F6,$R$11:$S$42,2),5) -> 00000 | G7: =IF(EXACT(G6,"Supported"),1,0) -> 0 | H7: =IF(EXACT(D6,"Not Supported"),"11",INDEX($V$11:$V$14,MATCH(H6,$U$11:$U$14,0))) -> 11 | I7: =DEC2BIN(VLOOKUP(I6,$P$11:$Q$42,2),5) -> 11111 | J7: 0 | K7: =VLOOKUP(K6,$U$18:$V$18,2) -> 00 | L7: =DEC2BIN(L6/( 0.49609375/127),7) -> 0101011 | M7: =IF(AND(EXACT(M6,"Supported"),EXACT(O6,"Not Supported")),1,0) -> 0 | N7: =DEC2BIN((N6-0.5)/((0.99609375-0.5)/127),7) -> 1001100 | O7: =IF(AND(EXACT(O6,"Supported"),EXACT(M6,"Not Supported")),1,0) -> 0 | P7: =DEC2BIN((P6-0.625)/((0.74609375-0.625)/31),5) -> 10101 | Q7: =DEC2BIN((Q6-0.125)/((0.15234375-0.125)/7),3) -> 001 | R7: =DEC2BIN((R6-0.25)/((0.37109375-0.25)/31),5) -> 01010 | S7: =DEC2BIN((S6-0.03125)/((0.05859375-0.03125)/7),3) -> 011
B9: Dolby VSVDB (V2) Payload | F9: =_xlfn.CONCAT(B4:S4) -> 4903F85698A953
O10: MaxL nits | P10: MaxL nits (int) | Q10: MaxL (dec) | R10: MinL nits | S10: MinL (dec) | U10: Backlight | V10: Value
O11: =PQ2nits((2055+65*Q11)/(2055+31*65)) -> 96.89294744 | P11: =INT(O11) -> 96 | Q11: 0 | R11: =ROUND(PQ2nits((20*$Q11)/(2055+31*65)),3) -> 0 | S11: 0 | U11: 25 nits | V11: 00
O12: =PQ2nits((2055+65*Q12)/(2055+31*65)) -> 113.5484927 | P12: 113 | Q12: 1 | R12: =ROUND(PQ2nits((20*$Q12)/(2055+31*65)),3) -> 0.001 | S12: 1 | U12: 50 nits | V12: 01
O13: =PQ2nits((2055+65*Q13)/(2055+31*65)) -> 132.855378 | P13: 132 | Q13: 2 | R13: =ROUND(PQ2nits((20*$Q13)/(2055+31*65)),3) -> 0.002 | S13: 2 | U13: 75 nits | V13: 10
O14: =PQ2nits((2055+65*Q14)/(2055+31*65)) -> 155.2199446 | P14: 155 | Q14: 3 | R14: =ROUND(PQ2nits((20*$Q14)/(2055+31*65)),3) -> 0.005 | S14: 3 | U14: 100 nits | V14: 11
O15: =PQ2nits((2055+65*Q15)/(2055+31*65)) -> 181.1107981 | P15: 181 | Q15: 4 | R15: =ROUND(PQ2nits((20*$Q15)/(2055+31*65)),3) -> 0.008 | S15: 4 | U15: Disabled | V15: 11
O16: =PQ2nits((2055+65*Q16)/(2055+31*65)) -> 211.0686167 | P16: =INT(O16) -> 211 | Q16: 5 | R16: =ROUND(PQ2nits((20*$Q16)/(2055+31*65)),3) -> 0.013 | S16: 5
O17: =PQ2nits((2055+65*Q17)/(2055+31*65)) -> 245.7175762 | P17: 245 | Q17: 6 | R17: =ROUND(PQ2nits((20*$Q17)/(2055+31*65)),3) -> 0.019 | S17: 6 | U17: Mode | V17: Value
O18: =PQ2nits((2055+65*Q18)/(2055+31*65)) -> 285.7786713 | P18: 285 | Q18: 7 | R18: =ROUND(PQ2nits((20*$Q18)/(2055+31*65)),3) -> 0.026 | S18: 7 | U18: LLDV | V18: 00
O19: =PQ2nits((2055+65*Q19)/(2055+31*65)) -> 332.0852676 | P19: 332 | Q19: 8 | R19: =ROUND(PQ2nits((20*$Q19)/(2055+31*65)),3) -> 0.035 | S19: 8
O20: =PQ2nits((2055+65*Q20)/(2055+31*65)) -> 385.6012776 | P20: 385 | Q20: 9 | R20: =ROUND(PQ2nits((20*$Q20)/(2055+31*65)),3) -> 0.046 | S20: 9 | U20: Color Space | V20: Rx | W20: Ry | X20: Gx | Y20: Gy | Z20: Bx | AA20: By | AB20: Source
O21: =PQ2nits((2055+65*Q21)/(2055+31*65)) -> 447.4424315 | P21: 447 | Q21: 10 | R21: =ROUND(PQ2nits((20*$Q21)/(2055+31*65)),3) -> 0.058 | S21: 10 | U21: BT709 | V21: 0.64 | W21: 0.33 | X21: 0.3 | Y21: 0.6 | Z21: 0.15 | AA21: 0.06 | AB21: https://en.wikipedia.org/wiki/Rec._709
O22: =PQ2nits((2055+65*Q22)/(2055+31*65)) -> 518.9012004 | P22: 518 | Q22: 11 | R22: =ROUND(PQ2nits((20*$Q22)/(2055+31*65)),3) -> 0.072 | S22: 11 | U22: BT2020 | V22: 0.708 | W22: 0.292 | X22: 0.17 | Y22: 0.797 | Z22: 0.131 | AA22: 0.046 | AB22: https://en.wikipedia.org/wiki/Rec._2020
O23: =PQ2nits((2055+65*Q23)/(2055+31*65)) -> 601.4760381 | P23: 601 | Q23: 12 | R23: =ROUND(PQ2nits((20*$Q23)/(2055+31*65)),3) -> 0.088 | S23: 12 | U23: DCI-P3 | V23: 0.68 | W23: 0.32 | X23: 0.265 | Y23: 0.69 | Z23: 0.15 | AA23: 0.06 | AB23: https://en.wikipedia.org/wiki/DCI-P3
O24: =PQ2nits((2055+65*Q24)/(2055+31*65)) -> 696.9057369 | P24: 696 | Q24: 13 | R24: =ROUND(PQ2nits((20*$Q24)/(2055+31*65)),3) -> 0.106 | S24: 13 | U24: LS12000 Native | V24: 0.667 | W24: 0.331 | X24: 0.314 | Y24: 0.672 | Z24: 0.148 | AA24: 0.042
O25: =PQ2nits((2055+65*Q25)/(2055+31*65)) -> 807.2098477 | P25: 807 | Q25: 14 | R25: =ROUND(PQ2nits((20*$Q25)/(2055+31*65)),3) -> 0.127 | S25: 14 | U25: m0j0 | V25: 0.667 | W25: 0.331 | X25: 0.265 | Y25: 0.69 | Z25: 0.148 | AA25: 0.06
O26: =PQ2nits((2055+65*Q26)/(2055+31*65)) -> 934.7363058 | P26: 934 | Q26: 15 | R26: =ROUND(PQ2nits((20*$Q26)/(2055+31*65)),3) -> 0.15 | S26: 15 | U26: CUSTOM | V26: 0.7499 | W26: 0.2461 | X26: 0.0039 | Y26: 0.9961 | Z26: 0.1289 | AA26: 0.0351
O27: =PQ2nits((2055+65*Q27)/(2055+31*65)) -> 1082.21763 | P27: 1082 | Q27: 16 | R27: =ROUND(PQ2nits((20*$Q27)/(2055+31*65)),3) -> 0.176 | S27: 16
O28: =PQ2nits((2055+65*Q28)/(2055+31*65)) -> 1252.837342 | P28: 1252 | Q28: 17 | R28: =ROUND(PQ2nits((20*$Q28)/(2055+31*65)),3) -> 0.204 | S28: 17 | U28: Min Value | V28: 0.6289 | W28: 0.2461 | X28: 0.0039 | Y28: 0.4961 | Z28: 0.1289 | AA28: 0.0351
O29: =PQ2nits((2055+65*Q29)/(2055+31*65)) -> 1450.308591 | P29: 1450 | Q29: 18 | R29: =ROUND(PQ2nits((20*$Q29)/(2055+31*65)),3) -> 0.236 | S29: 18 | U29: Max Value | V29: 0.7499 | W29: 0.3711 | X29: 0.4999 | Y29: 0.9961 | Z29: 0.1524 | AA29: 0.0624
O30: =PQ2nits((2055+65*Q30)/(2055+31*65)) -> 1678.967383 | P30: 1678 | Q30: 19 | R30: =ROUND(PQ2nits((20*$Q30)/(2055+31*65)),3) -> 0.271 | S30: 19
O31: =PQ2nits((2055+65*Q31)/(2055+31*65)) -> 1943.883308 | P31: 1943 | Q31: 20 | R31: =ROUND(PQ2nits((20*$Q31)/(2055+31*65)),3) -> 0.31 | S31: 20
O32: =PQ2nits((2055+65*Q32)/(2055+31*65)) -> 2250.991296 | P32: 2250 | Q32: 21 | R32: =ROUND(PQ2nits((20*$Q32)/(2055+31*65)),3) -> 0.353 | S32: 21
O33: =PQ2nits((2055+65*Q33)/(2055+31*65)) -> 2607.248669 | P33: 2607 | Q33: 22 | R33: =ROUND(PQ2nits((20*$Q33)/(2055+31*65)),3) -> 0.399 | S33: 22
O34: =PQ2nits((2055+65*Q34)/(2055+31*65)) -> 3020.822711 | P34: 3020 | Q34: 23 | R34: =ROUND(PQ2nits((20*$Q34)/(2055+31*65)),3) -> 0.45 | S34: 23
O35: =PQ2nits((2055+65*Q35)/(2055+31*65)) -> 3501.315105 | P35: 3501 | Q35: 24 | R35: =ROUND(PQ2nits((20*$Q35)/(2055+31*65)),3) -> 0.506 | S35: 24
O36: =PQ2nits((2055+65*Q36)/(2055+31*65)) -> 4060.031048 | P36: 4060 | Q36: 25 | R36: =ROUND(PQ2nits((20*$Q36)/(2055+31*65)),3) -> 0.566 | S36: 25
O37: =PQ2nits((2055+65*Q37)/(2055+31*65)) -> 4710.302591 | P37: 4710 | Q37: 26 | R37: =ROUND(PQ2nits((20*$Q37)/(2055+31*65)),3) -> 0.631 | S37: 26
O38: =PQ2nits((2055+65*Q38)/(2055+31*65)) -> 5467.877966 | P38: 5467 | Q38: 27 | R38: =ROUND(PQ2nits((20*$Q38)/(2055+31*65)),3) -> 0.702 | S38: 27
O39: =PQ2nits((2055+65*Q39)/(2055+31*65)) -> 6351.391429 | P39: 6351 | Q39: 28 | R39: =ROUND(PQ2nits((20*$Q39)/(2055+31*65)),3) -> 0.779 | S39: 28
O40: =PQ2nits((2055+65*Q40)/(2055+31*65)) -> 7382.931543 | P40: 7382 | Q40: 29 | R40: =ROUND(PQ2nits((20*$Q40)/(2055+31*65)),3) -> 0.862 | S40: 29
O41: =PQ2nits((2055+65*Q41)/(2055+31*65)) -> 8588.730191 | P41: 8588 | Q41: 30 | R41: =ROUND(PQ2nits((20*$Q41)/(2055+31*65)),3) -> 0.951 | S41: 30
O42: =PQ2nits((2055+65*Q42)/(2055+31*65)) -> 10000 | P42: 10000 | Q42: 31 | R42: =ROUND(PQ2nits((20*$Q42)/(2055+31*65)),3) -> 1.048 | S42: 31
B44: Based on Excels from: https://github.com/xnappo/ez_dv_edid_fw/archive/refs/heads/main.zip

Sheet HDR InfoFrame
B1: HDR InfoFrame Metadata | R1: LEGEND:
L2: Color Space: | M2: BT2020 | O2: White Point: | P2: D65 | S2: Cell to Enter data or Select data
S3: DO NOT TOUCH - System Calculated Values
B4: =CONCATENATE(RIGHT(DEC2HEX(ROUND(INDEX($U$11:$U$16,MATCH($M$2,$R$11:$R$16,0))*50000,0),4),2),LEFT(DEC2HEX(ROUND(INDEX($U$11:$U$16,MATCH($M$2,$R$11:$R$16,0))*50000,0),4),2)) -> 3421 | C4: =CONCATENATE(RIGHT(DEC2HEX(ROUND(INDEX($V$11:$V$16,MATCH($M$2,$R$11:$R$16,0))*50000,0),4),2),LEFT(DEC2HEX(ROUND(INDEX($V$11:$V$16,MATCH($M$2,$R$11:$R$16,0))*50000,0),4),2)) -> AA9B | D4: =CONCATENATE(RIGHT(DEC2HEX(ROUND(INDEX($W$11:$W$16,MATCH($M$2,$R$11:$R$16,0))*50000,0),4),2),LEFT(DEC2HEX(ROUND(INDEX($W$11:$W$16,MATCH($M$2,$R$11:$R$16,0))*50000,0),4),2)) -> 9619 | E4: =CONCATENATE(RIGHT(DEC2HEX(ROUND(INDEX($X$11:$X$16,MATCH($M$2,$R$11:$R$16,0))*50000,0),4),2),LEFT(DEC2HEX(ROUND(INDEX($X$11:$X$16,MATCH($M$2,$R$11:$R$16,0))*50000,0),4),2)) -> FC08 | F4: =CONCATENATE(RIGHT(DEC2HEX(ROUND(INDEX($S$11:$S$16,MATCH($M$2,$R$11:$R$16,0))*50000,0),4),2),LEFT(DEC2HEX(ROUND(INDEX($S$11:$S$16,MATCH($M$2,$R$11:$R$16,0))*50000,0),4),2)) -> 488A | G4: =CONCATENATE(RIGHT(DEC2HEX(ROUND(INDEX($T$11:$T$16,MATCH($M$2,$R$11:$R$16,0))*50000,0),4),2),LEFT(DEC2HEX(ROUND(INDEX($T$11:$T$16,MATCH($M$2,$R$11:$R$16,0))*50000,0),4),2)) -> 0839 | H4: =CONCATENATE(RIGHT(DEC2HEX(ROUND(INDEX($S$23:$S$26,MATCH($P$2,$R$23:$R$26,0))*50000,0),4),2),LEFT(DEC2HEX(ROUND(INDEX($S$23:$S$26,MATCH($P$2,$R$23:$R$26,0))*50000,0),4),2)) -> 133D | I4: =CONCATENATE(RIGHT(DEC2HEX(ROUND(INDEX($T$23:$T$26,MATCH($P$2,$R$23:$R$26,0))*50000,0),4),2),LEFT(DEC2HEX(ROUND(INDEX($T$23:$T$26,MATCH($P$2,$R$23:$R$26,0))*50000,0),4),2)) -> 4240 | J4: =CONCATENATE(RIGHT(DEC2HEX(ROUND(J6,0),4),2),LEFT(DEC2HEX(ROUND(J6,0),4),2)) -> A00F | K4: =CONCATENATE(RIGHT(DEC2HEX(ROUND(K6*10000,0),4),2),LEFT(DEC2HEX(ROUND(K6*10000,0),4),2)) -> 0100 | L4: =CONCATENATE(RIGHT(DEC2HEX(ROUND(L6,0),4),2),LEFT(DEC2HEX(ROUND(L6,0),4),2)) -> E803 | M4: =CONCATENATE(RIGHT(DEC2HEX(ROUND(M6,0),4),2),LEFT(DEC2HEX(ROUND(M6,0),4),2)) -> 9001 | S4: DO NOT TOUCH - Pre-defined Values or Labels
B5: Gx | C5: Gy | D5: Bx | E5: By | F5: Rx | G5: Ry | H5: WPx | I5: WPy | J5: MaxDL | K5: MinDL | L5: MaxCLL | M5: MaxFALL
B6: =INDEX($U$11:$U$16,MATCH($M$2,$R$11:$R$16,0)) -> 0.17 | C6: =INDEX($V$11:$V$16,MATCH($M$2,$R$11:$R$16,0)) -> 0.797 | D6: =INDEX($W$11:$W$16,MATCH($M$2,$R$11:$R$16,0)) -> 0.131 | E6: =INDEX($X$11:$X$16,MATCH($M$2,$R$11:$R$16,0)) -> 0.046 | F6: =INDEX($S$11:$S$16,MATCH($M$2,$R$11:$R$16,0)) -> 0.708 | G6: =INDEX($T$11:$T$16,MATCH($M$2,$R$11:$R$16,0)) -> 0.292 | H6: =INDEX($S$23:$S$26,MATCH($P$2,$R$23:$R$26,0)) -> 0.3127 | I6: =INDEX($T$23:$T$26,MATCH($P$2,$R$23:$R$26,0)) -> 0.329 | J6: 4000 | K6: 0.0001 | L6: 1000 | M6: 400
B8: HDR InfoFrame Metadata: | H8: =_xlfn.CONCAT(B4:M4) -> 3421AA9B9619FC08488A0839133D4240A00F0100E8039001
R10: Color Space | S10: Rx | T10: Ry | U10: Gx | V10: Gy | W10: Bx | X10: By | Y10: Source
R11: BT709 | S11: 0.64 | T11: 0.33 | U11: 0.3 | V11: 0.6 | W11: 0.15 | X11: 0.06 | Y11: https://en.wikipedia.org/wiki/Rec._709
R12: BT2020 | S12: 0.708 | T12: 0.292 | U12: 0.17 | V12: 0.797 | W12: 0.131 | X12: 0.046 | Y12: https://en.wikipedia.org/wiki/Rec._2020
R13: DCI-P3 | S13: 0.68 | T13: 0.32 | U13: 0.265 | V13: 0.69 | W13: 0.15 | X13: 0.06 | Y13: https://en.wikipedia.org/wiki/DCI-P3
R14: LS12000 Native | S14: 0.667 | T14: 0.331 | U14: 0.314 | V14: 0.672 | W14: 0.148 | X14: 0.042
R15: m0j0 | S15: 0.667 | T15: 0.331 | U15: 0.265 | V15: 0.69 | W15: 0.148 | X15: 0.06
R16: CUSTOM | S16: 0.7499 | T16: 0.2461 | U16: 0.0039 | V16: 0.9961 | W16: 0.1289 | X16: 0.0351
R18: Min Value | S18: 0.6289 | T18: 0.2461 | U18: 0.0039 | V18: 0.4961 | W18: 0.1289 | X18: 0.0351
R19: Max Value | S19: 0.7499 | T19: 0.3711 | U19: 0.4999 | V19: 0.9961 | W19: 0.1524 | X19: 0.0624
R22: White Point | S22: WPx | T22: WPy
R23: D65 | S23: 0.3127 | T23: 0.329 | U23: https://en.wikipedia.org/wiki/Rec._2020, https://en.wikipedia.org/wiki/DCI-P3
R24: P3-DCI | S24: 0.314 | T24: 0.351 | U24: https://en.wikipedia.org/wiki/DCI-P3
R25: P3-D60 | S25: 0.32168 | T25: 0.33767 | U25: https://en.wikipedia.org/wiki/DCI-P3
R26: CUSTOM | S26: 0.3127 | T26: 0.329
R28: Min Value | S28: 0.28315 | T28: 0.29711 | U28: https://en.wikipedia.org/wiki/Standard_illuminant
R29: Max Value | S29: 0.34773 | T29: 0.35952
B49: Based on Excels from: https://github.com/xnappo/ez_dv_edid_fw/archive/refs/heads/main.zip

Sheet CE HDR InfoFrame
B1: CoreELEC HDR InfoFrame Metadata (NON-Standard Big-Endian coding)
L2: Color Space: | M2: BT2020 | O2: White Point: | P2: D65 | R2: LEGEND:
S3: Cell to Enter data or Select data
B4: =DEC2HEX(ROUND(INDEX($U$11:$U$16,MATCH($M$2,$R$11:$R$16,0))*50000,0),4) -> 2134 | C4: =DEC2HEX(ROUND(INDEX($V$11:$V$16,MATCH($M$2,$R$11:$R$16,0))*50000,0),4) -> 9BAA | D4: =DEC2HEX(ROUND(INDEX($W$11:$W$16,MATCH($M$2,$R$11:$R$16,0))*50000,0),4) -> 1996 | E4: =DEC2HEX(ROUND(INDEX($X$11:$X$16,MATCH($M$2,$R$11:$R$16,0))*50000,0),4) -> 08FC | F4: =DEC2HEX(ROUND(INDEX($S$11:$S$16,MATCH($M$2,$R$11:$R$16,0))*50000,0),4) -> 8A48 | G4: =DEC2HEX(ROUND(INDEX($T$11:$T$16,MATCH($M$2,$R$11:$R$16,0))*50000,0),4) -> 3908 | H4: =DEC2HEX(ROUND(INDEX($S$23:$S$26,MATCH($P$2,$R$23:$R$26,0))*50000,0),4) -> 3D13 | I4: =DEC2HEX(ROUND(INDEX($T$23:$T$26,MATCH($P$2,$R$23:$R$26,0))*50000,0),4) -> 4042 | J4: =DEC2HEX(ROUND(J6,0),4) -> 0FA0 | K4: =DEC2HEX(ROUND(K6*10000,0),4) -> 0001 | L4: =DEC2HEX(ROUND(L6,0),4) -> 03E8 | M4: =DEC2HEX(ROUND(M6,0),4) -> 0190 | S4: DO NOT TOUCH - System Calculated Values
B5: Gx | C5: Gy | D5: Bx | E5: By | F5: Rx | G5: Ry | H5: WPx | I5: WPy | J5: MaxDL | K5: MinDL | L5: MaxCLL | M5: MaxFALL | S5: DO NOT TOUCH - Pre-defined Values or Labels
B6: =INDEX($U$11:$U$16,MATCH($M$2,$R$11:$R$16,0)) -> 0.17 | C6: =INDEX($V$11:$V$16,MATCH($M$2,$R$11:$R$16,0)) -> 0.797 | D6: =INDEX($W$11:$W$16,MATCH($M$2,$R$11:$R$16,0)) -> 0.131 | E6: =INDEX($X$11:$X$16,MATCH($M$2,$R$11:$R$16,0)) -> 0.046 | F6: =INDEX($S$11:$S$16,MATCH($M$2,$R$11:$R$16,0)) -> 0.708 | G6: =INDEX($T$11:$T$16,MATCH($M$2,$R$11:$R$16,0)) -> 0.292 | H6: =INDEX($S$23:$S$26,MATCH($P$2,$R$23:$R$26,0)) -> 0.3127 | I6: =INDEX($T$23:$T$26,MATCH($P$2,$R$23:$R$26,0)) -> 0.329 | J6: 4000 | K6: 0.0001 | L6: 1000 | M6: 400
B8: HDR InfoFrame Metadata: | H8: =_xlfn.CONCAT(B4:M4) -> 21349BAA199608FC8A4839083D1340420FA0000103E80190
R10: Color Space | S10: Rx | T10: Ry | U10: Gx | V10: Gy | W10: Bx | X10: By | Y10: Source
R11: BT709 | S11: 0.64 | T11: 0.33 | U11: 0.3 | V11: 0.6 | W11: 0.15 | X11: 0.06 | Y11: https://en.wikipedia.org/wiki/Rec._709
R12: BT2020 | S12: 0.708 | T12: 0.292 | U12: 0.17 | V12: 0.797 | W12: 0.131 | X12: 0.046 | Y12: https://en.wikipedia.org/wiki/Rec._2020
R13: DCI-P3 | S13: 0.68 | T13: 0.32 | U13: 0.265 | V13: 0.69 | W13: 0.15 | X13: 0.06 | Y13: https://en.wikipedia.org/wiki/DCI-P3
R14: LS12000 Native | S14: 0.667 | T14: 0.331 | U14: 0.314 | V14: 0.672 | W14: 0.148 | X14: 0.042
R15: m0j0 | S15: 0.667 | T15: 0.331 | U15: 0.265 | V15: 0.69 | W15: 0.148 | X15: 0.06
R16: CUSTOM | S16: 0.7499 | T16: 0.2461 | U16: 0.0039 | V16: 0.9961 | W16: 0.1289 | X16: 0.0351
R18: Min Value | S18: 0.6289 | T18: 0.2461 | U18: 0.0039 | V18: 0.4961 | W18: 0.1289 | X18: 0.0351
R19: Max Value | S19: 0.7499 | T19: 0.3711 | U19: 0.4999 | V19: 0.9961 | W19: 0.1524 | X19: 0.0624
R22: White Point | S22: WPx | T22: WPy
R23: D65 | S23: 0.3127 | T23: 0.329 | U23: https://en.wikipedia.org/wiki/Rec._2020, https://en.wikipedia.org/wiki/DCI-P3
R24: P3-DCI | S24: 0.314 | T24: 0.351 | U24: https://en.wikipedia.org/wiki/DCI-P3
R25: P3-D60 | S25: 0.32168 | T25: 0.33767 | U25: https://en.wikipedia.org/wiki/DCI-P3
R26: CUSTOM | S26: 0.3127 | T26: 0.329
R28: Min Value | S28: 0.28315 | T28: 0.29711 | U28: https://en.wikipedia.org/wiki/Standard_illuminant
R29: Max Value | S29: 0.34773 | T29: 0.35952
B49: Based on Excels from: https://github.com/xnappo/ez_dv_edid_fw/archive/refs/heads/main.zip
